[Event "Deloitte NK 2021"]
[Site "Hoogeveen, Netherlands"]
[Date "2021.10.16"]
[Round "2.5"]
[White "Maatman, Nick"]
[Black "Swinkels, Robin"]
[Result "0-1"]
[TimeControl "90min/40moves + 30min + 30sec/move"]
[WhiteElo "2368"]
[BlackElo "2509"]

1. d4 {[%clk 01:30:58]} {[%emt 00:00:02]} Nf6 {[%clk 01:30:56]} {[%emt
00:00:04]} 2. c4 {[%clk 01:31:22]} {[%emt 00:00:06]} e6 {[%clk 01:31:22]}
{[%emt 00:00:04]} 3. Nf3 {[%clk 01:30:55]} {[%emt 00:00:58]} d5 {[%clk
01:31:13]} {[%emt 00:00:39]} 4. Nc3 {[%clk 01:30:40]} {[%emt 00:00:44]} Be7
{[%clk 01:31:12]} {[%emt 00:00:31]} 5. Qc2 {[%clk 01:26:15]} {[%emt 00:04:56]}
c5 {[%clk 01:30:31]} {[%emt 00:01:10]} 6. dxc5 {[%clk 01:21:54]} {[%emt
00:04:52]} d4 {[%clk 01:19:14]} {[%emt 00:11:48]} 7. Nb5 {[%clk 00:59:28]}
{[%emt 00:22:55]} Bxc5 {[%clk 01:19:37]} {[%emt 00:00:07]} 8. Bf4 {[%clk
00:59:30]} {[%emt 00:00:28]} O-O {[%clk 01:20:00]} {[%emt 00:00:07]} 9. O-O-O
{[%clk 00:50:09]} {[%emt 00:09:51]} Qe7 {[%clk 00:58:25]} {[%emt 00:22:06]} 10.
Nbxd4 {[%clk 00:41:57]} {[%emt 00:08:41]} Bxd4 {[%clk 00:54:20]} {[%emt
00:04:35]} 11. Rxd4 {[%clk 00:41:51]} {[%emt 00:00:35]} Nc6 {[%clk 00:54:48]}
{[%emt 00:00:03]} 12. Rd2 {[%clk 00:35:46]} {[%emt 00:06:35]} e5 {[%clk
00:54:55]} {[%emt 00:00:24]} 13. Bg5 {[%clk 00:36:07]} {[%emt 00:00:08]} Be6
{[%clk 00:42:51]} {[%emt 00:12:34]} 14. e3 {[%clk 00:33:56]} {[%emt 00:02:41]}
Rfc8 {[%clk 00:28:23]} {[%emt 00:14:59]} 15. Bxf6 {[%clk 00:29:44]} {[%emt
00:04:41]} gxf6 {[%clk 00:20:19]} {[%emt 00:08:35]} 16. Qe4 {[%clk 00:23:10]}
{[%emt 00:07:03]} b5 {[%clk 00:18:04]} {[%emt 00:02:45]} 17. Bd3 {[%clk
00:16:18]} {[%emt 00:07:22]} f5 {[%clk 00:17:39]} {[%emt 00:00:56]} 18. Qh4
{[%clk 00:16:44]} {[%emt 00:00:04]} f6 {[%clk 00:14:08]} {[%emt 00:04:01]} 19.
Bc2 {[%clk 00:12:59]} {[%emt 00:04:15]} bxc4 {[%clk 00:04:00]} {[%emt
00:10:39]} 20. Rhd1 {[%clk 00:13:10]} {[%emt 00:00:18]} e4 {[%clk 00:04:25]}
{[%emt 00:00:05]} 21. g4 {[%clk 00:05:16]} {[%emt 00:08:24]} c3 {[%clk
00:02:03]} {[%emt 00:02:52]} 22. Rd6 {[%clk 00:05:31]} {[%emt 00:00:14]} cxb2+
{[%clk 00:02:30]} {[%emt 00:00:03]} 23. Kb1 {[%clk 00:04:31]} {[%emt 00:01:30]}
Bxa2+ {[%clk 00:02:37]} {[%emt 00:00:24]} 24. Kxa2 {[%clk 00:03:08]} {[%emt
00:01:53]} Nb4+ {[%clk 00:03:04]} {[%emt 00:00:03]} 25. Kb1 {[%clk 00:02:36]}
{[%emt 00:01:02]} Qf7 {[%clk 00:01:57]} {[%emt 00:01:37]} 26. R1d5 {[%clk
00:01:55]} {[%emt 00:01:10]} Nxc2 {[%clk 00:00:36]} {[%emt 00:01:52]} 27. Ne5
{[%clk 00:00:54]} {[%emt 00:01:30]} fxe5 {[%clk 00:00:33]} {[%emt 00:00:33]} 28.
Qg5+ {[%clk 00:00:42]} {[%emt 00:00:42]} Kh8 {[%clk 00:00:37]} {[%emt
00:00:27]} 29. Rd8+ {[%clk 00:00:47]} {[%emt 00:00:24]} Rxd8 {[%clk 00:01:05]}
{[%emt 00:00:02]} 30. Rxd8+ {[%clk 00:01:13]} {[%emt 00:00:04]} Rxd8 {[%clk
00:01:33]} {[%emt 00:00:02]} 31. Qxd8+ {[%clk 00:01:36]} {[%emt 00:00:07]} Kg7
{[%clk 00:02:01]} {[%emt 00:00:02]} 32. Qg5+ {[%clk 00:01:41]} {[%emt
00:00:25]} Kf8 {[%clk 00:02:00]} {[%emt 00:00:32]} 33. Qd8+ {[%clk 00:01:52]}
{[%emt 00:00:18]} Kg7 {[%clk 00:00:49]} {[%emt 00:01:42]} 34. Qg5+ {[%clk
00:02:17]} {[%emt 00:00:04]} Qg6 {[%clk 00:00:39]} {[%emt 00:00:41]} 35. Qe7+
{[%clk 00:02:43]} {[%emt 00:00:03]} Kg8 {[%clk 00:00:52]} {[%emt 00:00:18]} 36.
Qd8+ {[%clk 00:02:47]} {[%emt 00:00:25]} Kg7 {[%clk 00:01:20]} {[%emt
00:00:02]} 37. Qe7+ {[%clk 00:03:11]} {[%emt 00:00:06]} Kg8 {[%clk 00:01:48]}
{[%emt 00:00:02]} 38. Qd8+ {[%clk 00:03:36]} {[%emt 00:00:06]} Kf7 {[%clk
00:02:16]} {[%emt 00:00:03]} 39. Qd7+ {[%clk 00:02:32]} {[%emt 00:01:33]} Kf8
{[%clk 00:02:27]} {[%emt 00:00:18]} 40. Qd8+ {[%clk 00:01:59]} {[%emt
00:01:02]} Kf7 {[%clk 00:02:54]} {[%emt 00:00:05]} 41. Qd7+ {[%clk 00:02:17]}
{[%emt 00:00:11]} Kf6 {[%clk 00:02:33]} {[%emt 00:00:51]} 42. Qd8+ {[%clk
00:30:05]} {[%emt 00:02:42]} Ke6 {[%clk 00:32:08]} {[%emt 00:00:55]} 43. Qc8+
{[%clk 00:29:52]} {[%emt 00:00:42]} Kd5 {[%clk 00:27:41]} {[%emt 00:04:58]} 44.
Qd7+ {[%clk 00:26:23]} {[%emt 00:03:59]} Qd6 {[%clk 00:21:16]} {[%emt
00:06:55]} 45. Qb5+ {[%clk 00:26:13]} {[%emt 00:00:40]} Ke6 {[%clk 00:12:19]}
{[%emt 00:09:27]} 46. Qe8+ {[%clk 00:24:41]} {[%emt 00:02:02]} Kf6 {[%clk
00:11:53]} {[%emt 00:00:57]} 47. Kxc2 {[%clk 00:19:26]} {[%emt 00:05:46]} fxg4
{[%clk 00:06:08]} {[%emt 00:06:14]} 48. Qh8+ {[%clk 00:19:03]} {[%emt
00:00:52]} Kg5 {[%clk 00:04:48]} {[%emt 00:01:51]} 49. Qg7+ {[%clk 00:18:23]}
{[%emt 00:01:10]} Qg6 {[%clk 00:05:07]} {[%emt 00:00:11]} 50. Qxa7 {[%clk
00:15:59]} {[%emt 00:02:54]} Qf5 {[%clk 00:01:45]} {[%emt 00:03:52]} 51. Qg7+
{[%clk 00:14:11]} {[%emt 00:02:17]} Kh4 {[%clk 00:01:49]} {[%emt 00:00:26]} 52.
Qh6+ {[%clk 00:12:08]} {[%emt 00:02:33]} Qh5 {[%clk 00:02:17]} {[%emt
00:00:02]} 53. Qc6 {[%clk 00:09:41]} {[%emt 00:02:58]} Kh3 {[%clk 00:02:45]}
{[%emt 00:00:02]} 54. Kxb2 {[%clk 00:10:06]} {[%emt 00:00:05]} Qg6 {[%clk
00:01:47]} {[%emt 00:01:28]} 55. Qc2 {[%clk 00:06:28]} {[%emt 00:04:07]} Qf5
{[%clk 00:02:08]} {[%emt 00:00:10]} 56. Kc1 {[%clk 00:06:42]} {[%emt 00:00:15]}
h5 {[%clk 00:01:25]} {[%emt 00:01:15]} 57. Kd1 {[%clk 00:06:47]} {[%emt
00:00:23]} Qf3+ {[%clk 00:01:49]} {[%emt 00:00:08]} 58. Ke1 {[%clk 00:07:12]}
{[%emt 00:00:04]} Kxh2 {[%clk 00:01:42]} {[%emt 00:00:37]} 59. Qc7 {[%clk
00:07:20]} {[%emt 00:00:22]} Kg2 {[%clk 00:02:03]} {[%emt 00:00:09]} 0-1

[Event "Deloitte NK 2021"]
[Site "Hoogeveen, Netherlands"]
[Date "2021.10.16"]
[Round "2.6"]
[White "Brandenburg, Daan"]
[Black "Beerdsen, Thomas"]
[Result "1/2-1/2"]
[TimeControl "90min/40moves + 30min + 30sec/move"]
[WhiteElo "2482"]
[BlackElo "2454"]

1. c4 {[%clk 01:30:57]} {[%emt 00:00:03]} e5 {[%clk 01:30:49]} {[%emt
00:00:11]} 2. Nc3 {[%clk 01:31:21]} {[%emt 00:00:07]} Nf6 {[%clk 01:31:06]}
{[%emt 00:00:11]} 3. Nf3 {[%clk 01:31:42]} {[%emt 00:00:09]} e4 {[%clk
01:31:23]} {[%emt 00:00:12]} 4. Ng5 {[%clk 01:31:40]} {[%emt 00:00:33]} c6
{[%clk 01:31:47]} {[%emt 00:00:07]} 5. Ngxe4 {[%clk 01:29:10]} {[%emt
00:03:00]} Nxe4 {[%clk 01:31:57]} {[%emt 00:00:20]} 6. Nxe4 {[%clk 01:29:35]}
{[%emt 00:00:04]} d5 {[%clk 01:32:21]} {[%emt 00:00:06]} 7. Nc3 {[%clk
01:27:42]} {[%emt 00:02:23]} d4 {[%clk 01:32:18]} {[%emt 00:00:34]} 8. Nb1
{[%clk 01:27:41]} {[%emt 00:00:31]} d3 {[%clk 01:32:36]} {[%emt 00:00:11]} 9.
exd3 {[%clk 01:26:15]} {[%emt 00:01:56]} Bf5 {[%clk 01:28:19]} {[%emt
00:04:47]} 10. Be2 {[%clk 01:26:18]} {[%emt 00:00:28]} Qd4 {[%clk 01:07:00]}
{[%emt 00:21:48]} 11. Qb3 {[%clk 01:20:26]} {[%emt 00:06:22]} Bc5 {[%clk
00:53:36]} {[%emt 00:13:54]} 12. O-O {[%clk 00:56:43]} {[%emt 00:24:14]} O-O
{[%clk 00:46:54]} {[%emt 00:07:11]} 13. Na3 {[%clk 00:54:13]} {[%emt 00:03:01]}
Qe5 {[%clk 00:40:53]} {[%emt 00:06:31]} 14. Bf3 {[%clk 00:50:33]} {[%emt
00:04:09]} Nd7 {[%clk 00:34:57]} {[%emt 00:06:26]} 15. Nc2 {[%clk 00:30:24]}
{[%emt 00:20:40]} Bd6 {[%clk 00:31:17]} {[%emt 00:04:09]} 16. g3 {[%clk
00:30:48]} {[%emt 00:00:06]} Nc5 {[%clk 00:31:31]} {[%emt 00:00:17]} 17. d4
{[%clk 00:27:24]} {[%emt 00:03:54]} Nxb3 {[%clk 00:31:09]} {[%emt 00:00:52]} 18.
dxe5 {[%clk 00:27:50]} {[%emt 00:00:04]} Nxa1 {[%clk 00:30:51]} {[%emt
00:00:49]} 19. Ne3 {[%clk 00:28:16]} {[%emt 00:00:03]} Bxe5 {[%clk 00:30:10]}
{[%emt 00:01:11]} 20. Nxf5 {[%clk 00:28:40]} {[%emt 00:00:06]} Nc2 {[%clk
00:30:22]} {[%emt 00:00:18]} 21. Bd1 {[%clk 00:29:05]} {[%emt 00:00:05]} Nd4
{[%clk 00:29:48]} {[%emt 00:01:03]} 22. Ne3 {[%clk 00:29:28]} {[%emt 00:00:07]}
Rad8 {[%clk 00:25:16]} {[%emt 00:05:02]} 23. Re1 {[%clk 00:25:36]} {[%emt
00:04:22]} Rfe8 {[%clk 00:24:12]} {[%emt 00:01:34]} 24. Kf1 {[%clk 00:25:54]}
{[%emt 00:00:12]} g6 {[%clk 00:23:06]} {[%emt 00:01:36]} 25. b3 {[%clk
00:25:45]} {[%emt 00:00:40]} Bg7 {[%clk 00:22:09]} {[%emt 00:01:26]} 26. d3
{[%clk 00:23:33]} {[%emt 00:02:43]} f5 {[%clk 00:20:14]} {[%emt 00:02:25]} 27.
Ng2 {[%clk 00:19:03]} {[%emt 00:05:00]} Ne6 {[%clk 00:17:45]} {[%emt 00:02:58]}
28. Bc2 {[%clk 00:18:33]} {[%emt 00:01:01]} Bc3 {[%clk 00:16:33]} {[%emt
00:01:41]} 29. Re3 {[%clk 00:18:38]} {[%emt 00:00:26]} Kf7 {[%clk 00:14:36]}
{[%emt 00:02:27]} 30. h4 {[%clk 00:17:56]} {[%emt 00:01:12]} a5 {[%clk
00:13:21]} {[%emt 00:01:46]} 31. Re2 {[%clk 00:13:47]} {[%emt 00:04:39]} Rd7
{[%clk 00:08:40]} {[%emt 00:05:10]} 32. Re3 {[%clk 00:12:34]} {[%emt 00:01:43]}
Rdd8 {[%clk 00:08:12]} {[%emt 00:00:57]} 33. Re2 {[%clk 00:12:36]} {[%emt
00:00:29]} Rd7 {[%clk 00:08:20]} {[%emt 00:00:21]} 34. Re3 {[%clk 00:12:50]}
{[%emt 00:00:18]} 1/2-1/2

[Event "Deloitte NK 2021"]
[Site "Hoogeveen, Netherlands"]
[Date "2021.10.16"]
[Round "2.7"]
[White "Nijboer, Friso"]
[Black "Vrolijk, Liam"]
[Result "1/2-1/2"]
[TimeControl "90min/40moves + 30min + 30sec/move"]
[WhiteElo "2468"]
[BlackElo "2480"]

1. d4 {[%clk 01:30:51]} {[%emt 00:00:09]} Nf6 {[%clk 01:30:26]} {[%emt
00:00:34]} 2. c4 {[%clk 01:31:15]} {[%emt 00:00:06]} e6 {[%clk 01:30:49]}
{[%emt 00:00:06]} 3. Nc3 {[%clk 01:31:39]} {[%emt 00:00:06]} Bb4 {[%clk
01:31:13]} {[%emt 00:00:07]} 4. e3 {[%clk 01:32:04]} {[%emt 00:00:05]} O-O
{[%clk 01:31:01]} {[%emt 00:00:42]} 5. Bd3 {[%clk 01:32:25]} {[%emt 00:00:09]}
d5 {[%clk 01:31:25]} {[%emt 00:00:07]} 6. Nf3 {[%clk 01:32:46]} {[%emt
00:00:08]} dxc4 {[%clk 01:29:45]} {[%emt 00:02:10]} 7. Bxc4 {[%clk 01:32:43]}
{[%emt 00:00:33]} c5 {[%clk 01:30:08]} {[%emt 00:00:07]} 8. O-O {[%clk
01:33:01]} {[%emt 00:00:13]} Nc6 {[%clk 01:29:22]} {[%emt 00:01:15]} 9. a3
{[%clk 01:33:09]} {[%emt 00:00:22]} Ba5 {[%clk 01:28:13]} {[%emt 00:01:39]} 10.
Bd3 {[%clk 01:33:03]} {[%emt 00:00:36]} h6 {[%clk 01:24:02]} {[%emt 00:04:41]}
11. Ne2 {[%clk 01:15:22]} {[%emt 00:18:11]} cxd4 {[%clk 01:21:19]} {[%emt
00:03:13]} 12. exd4 {[%clk 01:14:39]} {[%emt 00:01:14]} Bc7 {[%clk 01:18:34]}
{[%emt 00:03:15]} 13. Qc2 {[%clk 00:55:00]} {[%emt 00:20:08]} e5 {[%clk
01:16:05]} {[%emt 00:02:59]} 14. dxe5 {[%clk 00:55:16]} {[%emt 00:00:15]} Nxe5
{[%clk 01:16:28]} {[%emt 00:00:07]} 15. Nxe5 {[%clk 00:55:41]} {[%emt
00:00:05]} Bxe5 {[%clk 01:16:50]} {[%emt 00:00:08]} 16. Bf4 {[%clk 00:54:11]}
{[%emt 00:02:00]} Bxf4 {[%clk 01:15:47]} {[%emt 00:01:32]} 17. Nxf4 {[%clk
00:54:36]} {[%emt 00:00:06]} Qd6 {[%clk 01:09:36]} {[%emt 00:06:40]} 18. g3
{[%clk 00:48:22]} {[%emt 00:06:44]} Bg4 {[%clk 01:01:32]} {[%emt 00:08:33]} 19.
f3 {[%clk 00:41:03]} {[%emt 00:07:50]} Qb6+ {[%clk 00:56:02]} {[%emt 00:06:01]}
20. Qf2 {[%clk 00:40:01]} {[%emt 00:01:31]} Qxf2+ {[%clk 00:55:34]} {[%emt
00:00:58]} 21. Rxf2 {[%clk 00:35:19]} {[%emt 00:05:12]} Bd7 {[%clk 00:55:47]}
{[%emt 00:00:18]} 22. Rd2 {[%clk 00:29:17]} {[%emt 00:06:32]} Bc6 {[%clk
00:53:16]} {[%emt 00:03:00]} 23. Be2 {[%clk 00:29:34]} {[%emt 00:00:14]} Rfd8
{[%clk 00:52:41]} {[%emt 00:01:04]} 24. Rad1 {[%clk 00:29:54]} {[%emt
00:00:11]} Rxd2 {[%clk 00:53:02]} {[%emt 00:00:09]} 25. Rxd2 {[%clk 00:30:17]}
{[%emt 00:00:07]} Kf8 {[%clk 00:51:28]} {[%emt 00:02:03]} 26. Kf2 {[%clk
00:25:39]} {[%emt 00:05:09]} Rc8 {[%clk 00:49:56]} {[%emt 00:02:02]} 27. h4
{[%clk 00:17:06]} {[%emt 00:09:03]} g5 {[%clk 00:45:09]} {[%emt 00:05:16]} 28.
Ng2 {[%clk 00:14:46]} {[%emt 00:02:50]} Bd5 {[%clk 00:44:01]} {[%emt 00:01:39]}
29. Ne3 {[%clk 00:14:15]} {[%emt 00:01:01]} Be6 {[%clk 00:44:13]} {[%emt
00:00:17]} 30. Rd4 {[%clk 00:11:42]} {[%emt 00:03:03]} Ke7 {[%clk 00:37:30]}
{[%emt 00:07:13]} 31. f4 {[%clk 00:03:57]} {[%emt 00:08:16]} gxh4 {[%clk
00:36:41]} {[%emt 00:01:19]} 32. gxh4 {[%clk 00:04:24]} {[%emt 00:00:03]} b6
{[%clk 00:34:20]} {[%emt 00:02:50]} 33. Bf3 {[%clk 00:03:41]} {[%emt 00:01:13]}
Rc5 {[%clk 00:32:08]} {[%emt 00:02:42]} 34. Ke2 {[%clk 00:03:33]} {[%emt
00:00:39]} Rc7 {[%clk 00:25:27]} {[%emt 00:07:11]} 35. Kd2 {[%clk 00:02:17]}
{[%emt 00:01:47]} Rc8 {[%clk 00:25:11]} {[%emt 00:00:44]} 36. Ke2 {[%clk
00:02:29]} {[%emt 00:00:18]} Rc7 {[%clk 00:25:35]} {[%emt 00:00:06]} 37. Rd2
{[%clk 00:02:26]} {[%emt 00:00:34]} Rc1 {[%clk 00:24:18]} {[%emt 00:01:47]} 38.
Rd1 {[%clk 00:02:01]} {[%emt 00:00:54]} Rc5 {[%clk 00:21:46]} {[%emt 00:03:02]}
39. Kf2 {[%clk 00:01:52]} {[%emt 00:00:39]} Rc8 {[%clk 00:21:38]} {[%emt
00:00:39]} 40. Be2 {[%clk 00:01:23]} {[%emt 00:00:58]} Rg8 {[%clk 00:17:42]}
{[%emt 00:04:26]} 41. Bf3 {[%clk 00:01:17]} {[%emt 00:00:36]} Rc8 {[%clk
00:16:24]} {[%emt 00:01:48]} 42. f5 {[%clk 00:25:02]} {[%emt 00:06:45]} Bd7
{[%clk 00:46:06]} {[%emt 00:00:48]} 43. Be2 {[%clk 00:25:19]} {[%emt 00:00:13]}
Rc5 {[%clk 00:42:31]} {[%emt 00:04:05]} 44. Bd3 {[%clk 00:24:54]} {[%emt
00:00:55]} Bc6 {[%clk 00:41:24]} {[%emt 00:01:37]} 45. Kg3 {[%clk 00:14:10]}
{[%emt 00:11:14]} 1/2-1/2

[Event "Deloitte NK 2021"]
[Site "Hoogeveen, Netherlands"]
[Date "2021.10.16"]
[Round "2.8"]
[White "Hendriks, Willy"]
[Black "Pijpers, Arthur"]
[Result "0-1"]
[TimeControl "90min/40moves + 30min + 30sec/move"]
[WhiteElo "2439"]
[BlackElo "2474"]

1. c4 {[%clk 01:30:53]} {[%emt 00:00:05]} c6 {[%clk 01:29:53]} {[%emt
00:01:08]} 2. e4 {[%clk 01:31:07]} {[%emt 00:00:16]} d5 {[%clk 01:30:18]}
{[%emt 00:00:06]} 3. exd5 {[%clk 01:31:08]} {[%emt 00:00:28]} cxd5 {[%clk
01:30:44]} {[%emt 00:00:05]} 4. d4 {[%clk 01:31:19]} {[%emt 00:00:18]} Nf6
{[%clk 01:31:05]} {[%emt 00:00:09]} 5. Nc3 {[%clk 01:31:40]} {[%emt 00:00:09]}
Nc6 {[%clk 01:31:30]} {[%emt 00:00:05]} 6. Bg5 {[%clk 01:31:48]} {[%emt
00:00:22]} dxc4 {[%clk 01:31:37]} {[%emt 00:00:23]} 7. d5 {[%clk 01:30:59]}
{[%emt 00:01:19]} Na5 {[%clk 01:31:50]} {[%emt 00:00:18]} 8. Bxc4 {[%clk
01:31:03]} {[%emt 00:00:25]} Nxc4 {[%clk 01:32:15]} {[%emt 00:00:05]} 9. Qa4+
{[%clk 01:31:22]} {[%emt 00:00:11]} Bd7 {[%clk 01:32:40]} {[%emt 00:00:05]} 10.
Qxc4 {[%clk 01:31:43]} {[%emt 00:00:10]} h6 {[%clk 01:32:53]} {[%emt 00:00:17]}
11. Bh4 {[%clk 01:25:54]} {[%emt 00:06:18]} b5 {[%clk 01:32:30]} {[%emt
00:00:54]} 12. Qd4 {[%clk 01:06:01]} {[%emt 00:20:23]} Qb6 {[%clk 01:22:04]}
{[%emt 00:10:56]} 13. Rd1 {[%clk 01:03:08]} {[%emt 00:03:21]} b4 {[%clk
01:15:12]} {[%emt 00:07:24]} 14. Bxf6 {[%clk 00:44:47]} {[%emt 00:18:50]} gxf6
{[%clk 01:07:27]} {[%emt 00:08:16]} 15. Ne4 {[%clk 00:35:14]} {[%emt 00:10:03]}
Rg8 {[%clk 00:37:33]} {[%emt 00:30:24]} 16. Ne2 {[%clk 00:33:30]} {[%emt
00:02:12]} f5 {[%clk 00:23:26]} {[%emt 00:14:38]} 17. N4g3 {[%clk 00:32:52]}
{[%emt 00:01:07]} Qxd4 {[%clk 00:23:01]} {[%emt 00:00:56]} 18. Rxd4 {[%clk
00:32:27]} {[%emt 00:00:55]} a5 {[%clk 00:19:23]} {[%emt 00:04:09]} 19. O-O
{[%clk 00:27:06]} {[%emt 00:05:51]} Rc8 {[%clk 00:19:08]} {[%emt 00:00:46]} 20.
Rc1 {[%clk 00:19:12]} {[%emt 00:08:23]} Rxc1+ {[%clk 00:19:25]} {[%emt
00:00:13]} 21. Nxc1 {[%clk 00:19:40]} {[%emt 00:00:02]} e5 {[%clk 00:19:43]}
{[%emt 00:00:12]} 22. dxe6 {[%clk 00:15:07]} {[%emt 00:05:03]} fxe6 {[%clk
00:19:08]} {[%emt 00:01:05]} 23. Nd3 {[%clk 00:14:08]} {[%emt 00:01:28]} Bg7
{[%clk 00:18:33]} {[%emt 00:01:06]} 24. Rc4 {[%clk 00:12:19]} {[%emt 00:02:19]}
Ke7 {[%clk 00:17:54]} {[%emt 00:01:09]} 25. Rc5 {[%clk 00:09:55]} {[%emt
00:02:54]} Ra8 {[%clk 00:16:34]} {[%emt 00:01:50]} 26. Rc2 {[%clk 00:01:12]}
{[%emt 00:09:13]} Rc8 {[%clk 00:11:33]} {[%emt 00:05:32]} 27. Rxc8 {[%clk
00:00:54]} {[%emt 00:00:47]} Bxc8 {[%clk 00:12:01]} {[%emt 00:00:02]} 28. b3
{[%clk 00:00:46]} {[%emt 00:00:38]} Ba6 {[%clk 00:11:26]} {[%emt 00:01:05]} 29.
Nc5 {[%clk 00:00:38]} {[%emt 00:00:38]} Bb5 {[%clk 00:10:46]} {[%emt 00:01:09]}
30. Nb7 {[%clk 00:00:33]} {[%emt 00:00:36]} a4 {[%clk 00:08:58]} {[%emt
00:02:18]} 31. bxa4 {[%clk 00:00:59]} {[%emt 00:00:04]} Bxa4 {[%clk 00:09:24]}
{[%emt 00:00:04]} 32. Ne2 {[%clk 00:01:13]} {[%emt 00:00:16]} Bb2 {[%clk
00:05:04]} {[%emt 00:04:50]} 33. Nc5 {[%clk 00:00:49]} {[%emt 00:00:54]} Bc2
{[%clk 00:05:26]} {[%emt 00:00:08]} 34. Nf4 {[%clk 00:00:36]} {[%emt 00:00:43]}
Bb1 {[%clk 00:05:05]} {[%emt 00:00:50]} 35. Ncxe6 {[%clk 00:00:45]} {[%emt
00:00:22]} Bxa2 {[%clk 00:05:17]} {[%emt 00:00:18]} 36. Nc5 {[%clk 00:00:50]}
{[%emt 00:00:26]} Bc4 {[%clk 00:04:10]} {[%emt 00:01:36]} 37. h3 {[%clk
00:00:38]} {[%emt 00:00:41]} Bd4 {[%clk 00:02:55]} {[%emt 00:01:45]} 38. Ncd3
{[%clk 00:00:42]} {[%emt 00:00:27]} b3 {[%clk 00:03:16]} {[%emt 00:00:10]} 39.
g4 {[%clk 00:00:32]} {[%emt 00:00:39]} Kf6 {[%clk 00:02:27]} {[%emt 00:01:18]}
0-1